[Event "European Online Club-ch-H 2021"]
[Site "Online"]
[Date "2021.03.27"]
[Round "5.19"]
[White "Valuet, Bertrand"]
[Black "Zambor, Norbert"]
[Result "1-0"]
[ECO "B31"]
[WhiteElo "2217"]
[BlackElo "2260"]
[Annotator "NA"]
[PlyCount "67"]
[EventDate "2021.03.27"]
[EventType "team-tourn"]
[EventCountry "NET"]
[SourceTitle "playchess.com"]
[Source "ChessBase"]
[SourceQuality "1"]
[TimeControl "900+5"]

1. e4 {[%emt 0:00:00]} c5 {[%emt 0:00:06]} 2. Nf3 {[%emt 0:00:03]} Nc6 {[%emt 0:00:03]} 3. Bb5 {[%emt 0:00:25]} g6 {[%emt 0:00:20]} 4. Bxc6 {[%emt 0:00:03]} dxc6 {[%emt 0:00:34]} 5. Nc3 {[%emt 0:00:14]} Bg7 {[%emt 0:00:08]} 6. d3 {[%emt 0:00:04]} e5 {[%emt 0:00:08]} 7. Be3 {[%emt 0:00:12]} Qe7 {[%emt 0:00:04]} 8. h3 {[%emt 0:00:55]} Nf6 {[%emt 0:00:37]} 9. Qd2 {[%emt 0:00:10]} Nd7 {[%emt 0:00:26]} 10. O-O {[%emt 0:00:27]} h6 {[%emt 0:00:48]} 11. Nh2 {[%emt 0:00:18]} g5 {[%emt 0:00:24]} 12. Ne2 {[%emt 0:01:39]} Nf8 {[%emt 0:00:23]} 13. Ng3 {[%emt 0:00:05]} Ng6 {[%emt 0:01:19]} 14. Qc3 {[%emt 0:01:46]} Bf8 {[%emt 0:00:45]} 15. Nh5 {[%emt 0:00:22]} Be6 {[%emt 0:00:37]} 16. Ng4 {[%emt 0:00:12]} Bxg4 {[%emt 0:00:29]} 17. hxg4 {[%emt 0:00:02]} O-O-O {[%emt 0:00:33]} 18. g3 {[%emt 0:00:15]} Rg8 {[%emt 0:00:50]} 19. f3 {[%emt 0:00:28]} Kb8 {[%emt 0:01:45]} 20. a3 {[%emt 0:00:08]} a6 {[%emt 0:00:30]} 21. Rfb1 {[%emt 0:00:57]} Rd4 {[%emt 0:02:32]} 22. b4 {[%emt 0:02:06]} cxb4 {[%emt 0:00:15]} 23. Qb3 {[%emt 0:00:04]} Rd8 {[%emt 0:01:31]} 24. axb4 {[%emt 0:00:09]} Qe6 {[%emt 0:00:18]} 25. c4 {[%emt 0:01:17]} Be7 {[%emt 0:00:52]} 26. Qc3 {[%emt 0:00:44]} Qd6 {[%emt 0:00:28]} 27. Rb3 {[%emt 0:00:11]} Rc8 {[%emt 0:00:17]} 28. Qb2 {[%emt 0:00:57]} Nf8 {[%emt 0:00:09]} 29. b5 {[%emt 0:00:37]} cxb5 {[%emt 0:00:07]} 30. cxb5 {[%emt 0:00:03]} a5 {[%emt 0:00:04]} 31. Rxa5 {[%emt 0:00:15]} Ne6 {[%emt 0:00:03]} 32. b6 {[%emt 0:00:20]} Nd4 {[%emt 0:00:04]} 33. Ra8+ {[%emt 0:00:07]} Kxa8 {[%emt 0:00:03]} 34. Qa2+ {[%emt 0:00:01]} 1-0

[Event "European Online Club-ch-H 2021"]
[Site "Online"]
[Date "2021.03.27"]
[Round "5.20"]
[White "Kusiak, Matej"]
[Black "Santamaria, Jorge"]
[Result "1/2-1/2"]
[ECO "B11"]
[WhiteElo "2251"]
[BlackElo "2185"]
[Annotator "NA"]
[PlyCount "131"]
[EventDate "2021.03.27"]
[EventType "team-tourn"]
[EventCountry "NET"]
[SourceTitle "playchess.com"]
[Source "ChessBase"]
[SourceQuality "1"]
[TimeControl "900+5"]

1. e4 {[%emt 0:00:00]} c6 {[%emt 0:00:09]} 2. Nc3 {[%emt 0:00:04]} d5 {[%emt 0:00:03]} 3. Nf3 {[%emt 0:00:01]} Bg4 {[%emt 0:00:06]} 4. Be2 {[%emt 0:00:02]} e6 {[%emt 0:00:17]} 5. h3 {[%emt 0:00:11]} Bxf3 {[%emt 0:00:08]} 6. Bxf3 {[%emt 0:00:03]} Nf6 {[%emt 0:00:14]} 7. d3 {[%emt 0:00:34]} Nbd7 {[%emt 0:00:45]} 8. O-O {[%emt 0:00:14]} Be7 {[%emt 0:00:37]} 9. Re1 {[%emt 0:01:03]} O-O {[%emt 0:00:34]} 10. e5 {[%emt 0:00:13]} Ne8 {[%emt 0:00:05]} 11. Bf4 {[%emt 0:00:02]} a6 {[%emt 0:00:16]} 12. Bh2 {[%emt 0:00:06]} Rc8 {[%emt 0:00:19]} 13. Ne2 {[%emt 0:00:24]} b5 {[%emt 0:03:31]} 14. a4 {[%emt 0:00:51]} Qb6 {[%emt 0:00:15]} 15. a5 {[%emt 0:00:37]} Qd8 {[%emt 0:00:23]} 16. c3 {[%emt 0:00:25]} c5 {[%emt 0:01:48]} 17. b3 {[%emt 0:00:52]} Qc7 {[%emt 0:00:51]} 18. Nf4 {[%emt 0:01:20]} Nxe5 {[%emt 0:01:43]} 19. Rxe5 {[%emt 0:00:09]} Qxe5 {[%emt 0:00:09]} 20. Nxd5 {[%emt 0:00:04]} Qg5 {[%emt 0:00:04]} 21. Bf4 {[%emt 0:00:02]} Qxd5 {[%emt 0:00:17]} 22. Bxd5 {[%emt 0:00:02]} exd5 {[%emt 0:00:02]} 23. Qf3 {[%emt 0:00:20]} Nf6 {[%emt 0:00:04]} 24. Re1 {[%emt 0:00:29]} Rfe8 {[%emt 0:00:06]} 25. g3 {[%emt 0:00:39]} h6 {[%emt 0:00:06]} 26. Be5 {[%emt 0:00:07]} Rcd8 {[%emt 0:01:06]} 27. Re2 {[%emt 0:00:36]} Kf8 {[%emt 0:00:05]} 28. Kg2 {[%emt 0:00:01]} Rd7 {[%emt 0:00:32]} 29. Qf5 {[%emt 0:00:05]} Rdd8 {[%emt 0:00:23]} 30. Bc7 {[%emt 0:00:34]} Rc8 {[%emt 0:00:47]} 31. Be5 {[%emt 0:00:42]} Rcd8 {[%emt 0:00:11]} 32. g4 {[%emt 0:00:03]} Kg8 {[%emt 0:00:26]} 33. Qf3 {[%emt 0:00:21]} Nh7 {[%emt 0:00:19]} 34. Bf4 {[%emt 0:00:24]} Kf8 {[%emt 0:00:35]} 35. Qg3 {[%emt 0:01:05]} Bf6 {[%emt 0:00:24]} 36. Rxe8+ {[%emt 0:00:03]} Rxe8 {[%emt 0:00:02]} 37. Bd6+ {[%emt 0:00:02]} Kg8 {[%emt 0:00:02]} 38. c4 {[%emt 0:00:16]} bxc4 {[%emt 0:00:04]} 39. bxc4 {[%emt 0:00:01]} dxc4 {[%emt 0:00:02]} 40. dxc4 {[%emt 0:00:02]} Bd4 {[%emt 0:00:02]} 41. Qf3 {[%emt 0:00:06]} Ng5 {[%emt 0:00:05]} 42. Qd1 {[%emt 0:00:16]} Re6 {[%emt 0:00:04]} 43. Bg3 {[%emt 0:00:03]} Ne4 {[%emt 0:00:04]} 44. Qd3 {[%emt 0:00:17]} Nxg3 {[%emt 0:00:05]} 45. Kxg3 {[%emt 0:00:03]} Re1 {[%emt 0:00:11]} 46. Qf3 {[%emt 0:00:16]} Re6 {[%emt 0:00:08]} 47. h4 {[%emt 0:00:09]} g6 {[%emt 0:00:02]} 48. Qa8+ {[%emt 0:00:04]} Kg7 {[%emt 0:00:03]} 49. Qd5 {[%emt 0:00:08]} Re2 {[%emt 0:00:13]} 50. f4 {[%emt 0:00:36]} Re3+ {[%emt 0:00:04]} 51. Kg2 {[%emt 0:00:05]} Re2+ {[%emt 0:00:04]} 52. Kf3 {[%emt 0:00:02]} Re3+ {[%emt 0:00:02]} 53. Kg2 {[%emt 0:00:06]} Re2+ {[%emt 0:00:02]} 54. Kf1 {[%emt 0:02:03]} Rf2+ {[%emt 0:00:05]} 55. Ke1 {[%emt 0:00:02]} Rxf4 {[%emt 0:00:02]} 56. g5 {[%emt 0:00:01]} Rxh4 {[%emt 0:00:11]} 57. gxh6+ {[%emt 0:00:06]} Rxh6 {[%emt 0:00:03]} 58. Ke2 {[%emt 0:00:14]} Rh2+ {[%emt 0:00:11]} 59. Kf3 {[%emt 0:00:03]} Rf2+ {[%emt 0:00:03]} 60. Kg3 {[%emt 0:00:02]} Rf6 {[%emt 0:00:03]} 61. Qd8 {[%emt 0:00:03]} Re6 {[%emt 0:00:07]} 62. Qd5 {[%emt 0:00:03]} Re3+ {[%emt 0:00:04]} 63. Kg2 {[%emt 0:00:02]} Re6 {[%emt 0:00:02]} 64. Kg3 {[%emt 0:00:02]} Kh6 {[%emt 0:00:05]} 65. Qd7 {[%emt 0:00:03]} Kg7 {[%emt 0:00:05]} 66. Qd5 {[%emt 0:00:02]} 1/2-1/2

[Event "European Online Club-ch-H 2021"]
[Site "Online"]
[Date "2021.03.27"]
[Round "6.1"]
[White "Samani, Yamac"]
[Black "Manik, Mikulas"]
[Result "1/2-1/2"]
[ECO "B90"]
[WhiteElo "2246"]
[BlackElo "2353"]
[Annotator "NA"]
[PlyCount "84"]
[EventDate "2021.03.27"]
[EventType "team-tourn"]
[EventCountry "NET"]
[SourceTitle "playchess.com"]
[Source "ChessBase"]
[SourceQuality "1"]
[TimeControl "900+5"]

1. e4 {[%emt 0:00:00]} c5 {[%emt 0:00:05]} 2. Nf3 {[%emt 0:00:02]} d6 {[%emt 0:00:02]} 3. d4 {[%emt 0:00:01]} cxd4 {[%emt 0:00:02]} 4. Nxd4 {[%emt 0:00:01]} Nf6 {[%emt 0:00:02]} 5. Nc3 {[%emt 0:00:01]} a6 {[%emt 0:00:03]} 6. Be3 {[%emt 0:00:05]} e5 {[%emt 0:00:03]} 7. Nf3 {[%emt 0:00:01]} Qc7 {[%emt 0:00:11]} 8. h3 {[%emt 0:00:10]} Be7 {[%emt 0:00:04]} 9. g4 {[%emt 0:00:02]} h6 {[%emt 0:00:11]} 10. g5 {[%emt 0:00:03]} hxg5 {[%emt 0:00:02]} 11. Nxg5 {[%emt 0:00:01]} Be6 {[%emt 0:01:34]} 12. Rg1 {[%emt 0:01:46]} Bc4 {[%emt 0:00:38]} 13. Bxc4 {[%emt 0:00:04]} Qxc4 {[%emt 0:00:03]} 14. Qf3 {[%emt 0:00:59]} Nbd7 {[%emt 0:00:30]} 15. O-O-O {[%emt 0:00:13]} Rc8 {[%emt 0:00:08]} 16. Kb1 {[%emt 0:00:17]} Rf8 {[%emt 0:00:53]} 17. Rd2 {[%emt 0:00:52]} Qb4 {[%emt 0:00:33]} 18. a3 {[%emt 0:00:18]} Qa5 {[%emt 0:00:04]} 19. Nd5 {[%emt 0:01:27]} Nxd5 {[%emt 0:00:11]} 20. Rxd5 {[%emt 0:00:47]} Qc7 {[%emt 0:01:48]} 21. Rd2 {[%emt 0:00:22]} b5 {[%emt 0:00:37]} 22. Qh5 {[%emt 0:01:18]} Nf6 {[%emt 0:02:33]} 23. Qe2 {[%emt 0:00:09]} Qc4 {[%emt 0:00:26]} 24. Qxc4 {[%emt 0:02:15]} bxc4 {[%emt 0:00:40]} 25. c3 {[%emt 0:00:13]} Rh8 {[%emt 0:00:06]} 26. f4 {[%emt 0:00:23]} Rh4 {[%emt 0:01:31]} 27. Rf2 {[%emt 0:00:20]} Rc6 {[%emt 0:00:56]} 28. fxe5 {[%emt 0:00:46]} Nxe4 {[%emt 0:00:10]} 29. Nxe4 {[%emt 0:00:07]} Rxe4 {[%emt 0:00:03]} 30. exd6 {[%emt 0:00:05]} Rxe3 {[%emt 0:00:10]} 31. dxe7 {[%emt 0:00:03]} g6 {[%emt 0:00:06]} 32. Rgf1 {[%emt 0:00:59]} Rxe7 {[%emt 0:00:04]} 33. Rf6 {[%emt 0:00:15]} Rxf6 {[%emt 0:00:43]} 34. Rxf6 {[%emt 0:00:03]} Re6 {[%emt 0:00:10]} 35. Rf4 {[%emt 0:00:48]} Rc6 {[%emt 0:00:03]} 36. Kc2 {[%emt 0:00:08]} f5 {[%emt 0:00:09]} 37. h4 {[%emt 0:00:03]} Kf7 {[%emt 0:00:06]} 38. Kd2 {[%emt 0:00:17]} Kf6 {[%emt 0:00:04]} 39. Ke3 {[%emt 0:00:04]} g5 {[%emt 0:00:07]} 40. hxg5+ {[%emt 0:00:02]} Kxg5 {[%emt 0:00:02]} 41. Rd4 {[%emt 0:00:06]} Re6+ {[%emt 0:00:26]} 42. Kf3 {[%emt 0:00:04]} Rb6 {[%emt 0:00:05]} 1/2-1/2

[Event "European Online Club-ch-H 2021"]
[Site "Online"]
[Date "2021.03.27"]
[Round "6.2"]
[White "Danada, Tomas"]
[Black "Agdelen, Huseyin Can"]
[Result "1-0"]
[ECO "E01"]
[WhiteElo "2321"]
[BlackElo "2206"]
[Annotator "NA"]
[PlyCount "117"]
[EventDate "2021.03.27"]
[EventType "team-tourn"]
[EventCountry "NET"]
[SourceTitle "playchess.com"]
[Source "ChessBase"]
[SourceQuality "1"]
[TimeControl "900+5"]

1. d4 {[%emt 0:00:00]} d5 {[%emt 0:00:18]} 2. c4 {[%emt 0:00:03]} e6 {[%emt 0:00:01]} 3. Nf3 {[%emt 0:00:02]} Nf6 {[%emt 0:00:02]} 4. Nc3 {[%emt 0:00:01]} c6 {[%emt 0:00:01]} 5. g3 {[%emt 0:00:02]} dxc4 {[%emt 0:01:31]} 6. Bg2 {[%emt 0:00:01]} Nbd7 {[%emt 0:00:10]} 7. O-O {[%emt 0:00:02]} Bb4 {[%emt 0:00:09]} 8. Qc2 {[%emt 0:00:31]} O-O {[%emt 0:00:33]} 9. e4 {[%emt 0:00:02]} h6 {[%emt 0:00:30]} 10. a4 {[%emt 0:00:29]} a5 {[%emt 0:00:10]} 11. e5 {[%emt 0:02:02]} Nd5 {[%emt 0:01:04]} 12. Nd2 {[%emt 0:01:05]} f5 {[%emt 0:00:59]} 13. Nxc4 {[%emt 0:00:48]} N7b6 {[%emt 0:00:28]} 14. Ne3 {[%emt 0:00:35]} Bd7 {[%emt 0:00:56]} 15. Bd2 {[%emt 0:00:33]} Qe7 {[%emt 0:00:33]} 16. Rac1 {[%emt 0:00:18]} Rac8 {[%emt 0:00:07]} 17. Qb3 {[%emt 0:00:36]} Rfd8 {[%emt 0:03:46]} 18. Ncxd5 {[%emt 0:01:50]} cxd5 {[%emt 0:00:09]} 19. Bxb4 {[%emt 0:00:13]} Qxb4 {[%emt 0:00:40]} 20. Qxb4 {[%emt 0:00:07]} axb4 {[%emt 0:00:00]} 21. b3 {[%emt 0:00:15]} Kf8 {[%emt 0:02:34]} 22. f4 {[%emt 0:01:39]} Ke7 {[%emt 0:00:17]} 23. Kf2 {[%emt 0:00:02]} Be8 {[%emt 0:00:55]} 24. Ke2 {[%emt 0:00:22]} Nd7 {[%emt 0:00:07]} 25. Kd2 {[%emt 0:00:11]} Nb8 {[%emt 0:00:04]} 26. Rxc8 {[%emt 0:01:35]} Rxc8 {[%emt 0:00:03]} 27. Rc1 {[%emt 0:00:01]} Nc6 {[%emt 0:00:34]} 28. Bf1 {[%emt 0:00:59]} Bd7 {[%emt 0:00:09]} 29. Nc2 {[%emt 0:00:16]} Na5 {[%emt 0:00:11]} 30. Na1 {[%emt 0:00:22]} Rg8 {[%emt 0:00:12]} 31. Rc5 {[%emt 0:02:25]} Nc6 {[%emt 0:00:12]} 32. Nc2 {[%emt 0:00:03]} g5 {[%emt 0:00:02]} 33. fxg5 {[%emt 0:00:01]} hxg5 {[%emt 0:00:00]} 34. Bb5 {[%emt 0:00:09]} Rh8 {[%emt 0:00:06]} 35. Bxc6 {[%emt 0:00:06]} Rxh2+ {[%emt 0:00:02]} 36. Kd3 {[%emt 0:00:01]} Bxc6 {[%emt 0:00:08]} 37. Nxb4 {[%emt 0:00:02]} Bd7 {[%emt 0:00:04]} 38. Rc7 {[%emt 0:00:07]} Rh3 {[%emt 0:00:08]} 39. Rxb7 {[%emt 0:00:04]} Rxg3+ {[%emt 0:00:01]} 40. Kc2 {[%emt 0:00:02]} Kd8 {[%emt 0:00:04]} 41. a5 {[%emt 0:00:05]} Rg2+ {[%emt 0:00:03]} 42. Kb1 {[%emt 0:00:03]} Kc8 {[%emt 0:00:20]} 43. a6 {[%emt 0:00:06]} Rh2 {[%emt 0:00:02]} 44. Rb6 {[%emt 0:00:14]} Kc7 {[%emt 0:00:04]} 45. Rb7+ {[%emt 0:00:03]} Kc8 {[%emt 0:00:02]} 46. Nd3 {[%emt 0:00:07]} g4 {[%emt 0:00:08]} 47. Nc5 {[%emt 0:00:02]} Bc6 {[%emt 0:00:06]} 48. Rg7 {[%emt 0:00:10]} Kb8 {[%emt 0:00:05]} 49. b4 {[%emt 0:00:06]} Rd2 {[%emt 0:00:06]} 50. Nxe6 {[%emt 0:00:03]} Rd3 {[%emt 0:00:04]} 51. b5 {[%emt 0:00:06]} Rb3+ {[%emt 0:00:02]} 52. Kc2 {[%emt 0:00:01]} Rxb5 {[%emt 0:00:00]} 53. a7+ {[%emt 0:00:02]} Ka8 {[%emt 0:00:14]} 54. Nc7+ {[%emt 0:00:01]} Kxa7 {[%emt 0:00:01]} 55. Nxb5+ {[%emt 0:00:02]} Kb6 {[%emt 0:00:01]} 56. Nd6 {[%emt 0:00:02]} Ba4+ {[%emt 0:00:06]} 57. Kd3 {[%emt 0:00:05]} Bd1 {[%emt 0:00:03]} 58. e6 {[%emt 0:00:08]} g3 {[%emt 0:00:10]} 59. e7 {[%emt 0:00:07]} 1-0

[Event "European Online Club-ch-H 2021"]
[Site "Online"]
[Date "2021.03.27"]
[Round "6.3"]
[White "Sertbay, Huseyin"]
[Black "Zambor, Norbert"]
[Result "1-0"]
[ECO "A56"]
[WhiteElo "2101"]
[BlackElo "2260"]
[Annotator "NA"]
[PlyCount "179"]
[EventDate "2021.03.27"]
[EventType "team-tourn"]
[EventCountry "NET"]
[SourceTitle "playchess.com"]
[Source "ChessBase"]
[SourceQuality "1"]
[TimeControl "900+5"]

1. d4 {[%emt 0:00:00]} c5 {[%emt 0:00:05]} 2. d5 {[%emt 0:00:02]} d6 {[%emt 0:00:03]} 3. c4 {[%emt 0:00:02]} Nf6 {[%emt 0:00:02]} 4. Nc3 {[%emt 0:00:02]} g6 {[%emt 0:00:03]} 5. h3 {[%emt 0:00:03]} Bg7 {[%emt 0:00:02]} 6. Nf3 {[%emt 0:00:01]} O-O {[%emt 0:00:02]} 7. Bf4 {[%emt 0:00:06]} Na6 {[%emt 0:01:38]} 8. e3 {[%emt 0:00:51]} Nc7 {[%emt 0:00:23]} 9. Be2 {[%emt 0:00:41]} a6 {[%emt 0:00:24]} 10. a4 {[%emt 0:00:12]} Rb8 {[%emt 0:00:43]} 11. O-O {[%emt 0:00:12]} Bd7 {[%emt 0:00:16]} 12. a5 {[%emt 0:00:44]} b5 {[%emt 0:00:17]} 13. axb6 {[%emt 0:00:02]} Rxb6 {[%emt 0:00:02]} 14. Qc2 {[%emt 0:00:13]} Qb8 {[%emt 0:01:37]} 15. Rfb1 {[%emt 0:00:36]} Qb7 {[%emt 0:00:15]} 16. Nd2 {[%emt 0:00:07]} Rb8 {[%emt 0:00:13]} 17. b3 {[%emt 0:00:01]} Bf5 {[%emt 0:00:56]} 18. e4 {[%emt 0:00:16]} Bd7 {[%emt 0:00:14]} 19. Ra3 {[%emt 0:01:03]} e6 {[%emt 0:01:10]} 20. Bg3 {[%emt 0:00:11]} exd5 {[%emt 0:00:11]} 21. cxd5 {[%emt 0:00:05]} Nb5 {[%emt 0:00:32]} 22. Nxb5 {[%emt 0:00:20]} Bxb5 {[%emt 0:00:59]} 23. Bc4 {[%emt 0:01:33]} Nd7 {[%emt 0:00:26]} 24. f4 {[%emt 0:00:04]} Nf6 {[%emt 0:00:58]} 25. Re1 {[%emt 0:01:07]} Nh5 {[%emt 0:01:06]} 26. Bh2 {[%emt 0:00:03]} Bd4+ {[%emt 0:01:10]} 27. Kh1 {[%emt 0:00:02]} Bf2 {[%emt 0:00:16]} 28. Rf1 {[%emt 0:00:52]} Ng3+ {[%emt 0:00:08]} 29. Bxg3 {[%emt 0:00:02]} Bxg3 {[%emt 0:00:02]} 30. Qd3 {[%emt 0:00:04]} Bh4 {[%emt 0:00:12]} 31. e5 {[%emt 0:00:06]} Bxc4 {[%emt 0:00:20]} 32. bxc4 {[%emt 0:00:16]} Re8 {[%emt 0:02:26]} 33. exd6 {[%emt 0:00:18]} Rxd6 {[%emt 0:00:14]} 34. Ne4 {[%emt 0:00:01]} Rdd8 {[%emt 0:00:08]} 35. Nxc5 {[%emt 0:00:04]} Qb2 {[%emt 0:00:12]} 36. Qf3 {[%emt 0:03:55]} Qd4 {[%emt 0:00:05]} 37. Nxa6 {[%emt 0:00:36]} Qxc4 {[%emt 0:00:02]} 38. f5 {[%emt 0:00:07]} Rf8 {[%emt 0:00:09]} 39. Rd1 {[%emt 0:00:27]} Rd6 {[%emt 0:00:02]} 40. Qd3 {[%emt 0:00:15]} Qxd3 {[%emt 0:00:04]} 41. Rdxd3 {[%emt 0:00:02]} Ra8 {[%emt 0:00:06]} 42. Ra4 {[%emt 0:00:43]} Bf6 {[%emt 0:00:06]} 43. Nc5 {[%emt 0:00:03]} Rxa4 {[%emt 0:00:04]} 44. Nxa4 {[%emt 0:00:01]} Ra6 {[%emt 0:00:02]} 45. Nc5 {[%emt 0:00:27]} Ra1+ {[%emt 0:00:07]} 46. Kh2 {[%emt 0:00:01]} Be5+ {[%emt 0:00:02]} 47. g3 {[%emt 0:00:01]} Ra2+ {[%emt 0:00:04]} 48. Kh1 {[%emt 0:00:03]} Ra1+ {[%emt 0:00:09]} 49. Kg2 {[%emt 0:00:03]} Ra2+ {[%emt 0:00:06]} 50. Kf3 {[%emt 0:00:03]} Bd6 {[%emt 0:00:05]} 51. Ne4 {[%emt 0:00:02]} Ra6 {[%emt 0:00:03]} 52. Nxd6 {[%emt 0:00:05]} Rxd6 {[%emt 0:00:02]} 53. Ke4 {[%emt 0:00:02]} Kf8 {[%emt 0:00:11]} 54. Ke5 {[%emt 0:00:04]} Ke7 {[%emt 0:00:02]} 55. fxg6 {[%emt 0:00:10]} hxg6 {[%emt 0:00:07]} 56. Ra3 {[%emt 0:00:11]} f6+ {[%emt 0:00:02]} 57. Ke4 {[%emt 0:00:01]} Rb6 {[%emt 0:00:09]} 58. Kd4 {[%emt 0:00:56]} Kd6 {[%emt 0:00:08]} 59. Kc4 {[%emt 0:00:01]} f5 {[%emt 0:00:07]} 60. h4 {[%emt 0:00:05]} Ke5 {[%emt 0:00:06]} 61. Re3+ {[%emt 0:00:03]} Kf6 {[%emt 0:00:01]} 62. Kc5 {[%emt 0:00:05]} Rb1 {[%emt 0:00:02]} 63. d6 {[%emt 0:00:07]} Rc1+ {[%emt 0:00:04]} 64. Kb6 {[%emt 0:00:02]} Rd1 {[%emt 0:00:05]} 65. Kc7 {[%emt 0:00:01]} Rc1+ {[%emt 0:00:08]} 66. Kd8 {[%emt 0:00:02]} g5 {[%emt 0:00:09]} 67. h5 {[%emt 0:00:06]} f4 {[%emt 0:00:02]} 68. gxf4 {[%emt 0:00:02]} gxf4 {[%emt 0:00:02]} 69. Re7 {[%emt 0:00:15]} f3 {[%emt 0:00:03]} 70. Re8 {[%emt 0:00:12]} Kg5 {[%emt 0:00:08]} 71. Rf8 {[%emt 0:00:06]} Kxh5 {[%emt 0:00:09]} 72. Rxf3 {[%emt 0:00:02]} Kg4 {[%emt 0:00:02]} 73. Rf2 {[%emt 0:00:02]} Kg5 {[%emt 0:00:08]} 74. d7 {[%emt 0:00:03]} Kg6 {[%emt 0:00:02]} 75. Rf4 {[%emt 0:00:33]} Kg7 {[%emt 0:00:07]} 76. Ke7 {[%emt 0:00:27]} Re1+ {[%emt 0:00:03]} 77. Kd6 {[%emt 0:00:02]} Rd1+ {[%emt 0:00:03]} 78. Kc6 {[%emt 0:00:02]} Kg8 {[%emt 0:00:10]} 79. Rf5 {[%emt 0:00:12]} Rc1+ {[%emt 0:00:07]} 80. Kd6 {[%emt 0:00:06]} Rd1+ {[%emt 0:00:03]} 81. Rd5 {[%emt 0:00:02]} Rxd5+ {[%emt 0:00:03]} 82. Kxd5 {[%emt 0:00:01]} Kf7 {[%emt 0:00:01]} 83. d8=Q {[%emt 0:00:03]} Kg6 {[%emt 0:00:02]} 84. Qf8 {[%emt 0:00:01]} Kh7 {[%emt 0:00:04]} 85. Qf2 {[%emt 0:00:05]} Kg6 {[%emt 0:00:02]} 86. Ke6 {[%emt 0:00:01]} Kg5 {[%emt 0:00:02]} 87. Qf3 {[%emt 0:00:04]} Kh4 {[%emt 0:00:02]} 88. Qg2 {[%emt 0:00:03]} Kh5 {[%emt 0:00:02]} 89. Kf5 {[%emt 0:00:02]} Kh4 {[%emt 0:00:02]} 90. Qg4# {[%emt 0:00:02]} 1-0

[Event "European Online Club-ch-H 2021"]
[Site "Online"]
[Date "2021.03.27"]
[Round "6.4"]
[White "Kusiak, Matej"]
[Black "Atasoy, Ata"]
[Result "1-0"]
[ECO "B41"]
[WhiteElo "2251"]
[BlackElo "1636"]
[Annotator "NA"]
[PlyCount "139"]
[EventDate "2021.03.27"]
[EventType "team-tourn"]
[EventCountry "NET"]
[SourceTitle "playchess.com"]
[Source "ChessBase"]
[SourceQuality "1"]
[TimeControl "900+5"]

1. e4 {[%emt 0:00:00]} c5 {[%emt 0:00:08]} 2. Nf3 {[%emt 0:00:03]} e6 {[%emt 0:00:02]} 3. d4 {[%emt 0:00:01]} cxd4 {[%emt 0:00:00]} 4. Nxd4 {[%emt 0:00:01]} a6 {[%emt 0:00:01]} 5. c4 {[%emt 0:00:01]} Nf6 {[%emt 0:00:03]} 6. Nc3 {[%emt 0:00:02]} Qc7 {[%emt 0:00:03]} 7. a3 {[%emt 0:00:27]} b6 {[%emt 0:00:04]} 8. Bd3 {[%emt 0:00:02]} Bb7 {[%emt 0:00:04]} 9. O-O {[%emt 0:00:02]} Be7 {[%emt 0:00:03]} 10. Re1 {[%emt 0:00:17]} d6 {[%emt 0:00:03]} 11. Be3 {[%emt 0:00:16]} O-O {[%emt 0:00:05]} 12. Rc1 {[%emt 0:00:02]} Nbd7 {[%emt 0:00:02]} 13. f3 {[%emt 0:00:02]} Rac8 {[%emt 0:00:07]} 14. Bf1 {[%emt 0:00:02]} Rfe8 {[%emt 0:00:06]} 15. Qd2 {[%emt 0:00:26]} Qb8 {[%emt 0:01:16]} 16. h3 {[%emt 0:01:22]} Bd8 {[%emt 0:02:56]} 17. Bf2 {[%emt 0:01:37]} Bc7 {[%emt 0:01:25]} 18. f4 {[%emt 0:00:28]} Nc5 {[%emt 0:02:59]} 19. Qc2 {[%emt 0:00:44]} g6 {[%emt 0:01:39]} 20. b4 {[%emt 0:00:15]} Ncd7 {[%emt 0:00:03]} 21. f5 {[%emt 0:00:34]} exf5 {[%emt 0:00:44]} 22. exf5 {[%emt 0:00:20]} Ne5 {[%emt 0:00:27]} 23. fxg6 {[%emt 0:00:10]} hxg6 {[%emt 0:00:22]} 24. Bh4 {[%emt 0:00:09]} Nfd7 {[%emt 0:01:42]} 25. Qf2 {[%emt 0:00:50]} Bd8 {[%emt 0:00:19]} 26. Bxd8 {[%emt 0:00:23]} Rexd8 {[%emt 0:00:45]} 27. Ne4 {[%emt 0:00:41]} Bxe4 {[%emt 0:00:13]} 28. Rxe4 {[%emt 0:00:04]} d5 {[%emt 0:00:08]} 29. Rh4 {[%emt 0:00:25]} dxc4 {[%emt 0:00:24]} 30. Qf4 {[%emt 0:01:09]} Qd6 {[%emt 0:00:43]} 31. Qh6 {[%emt 0:00:21]} Qf6 {[%emt 0:00:06]} 32. Qh7+ {[%emt 0:03:29]} Kf8 {[%emt 0:00:03]} 33. Be2 {[%emt 0:00:01]} Qg7 {[%emt 0:00:23]} 34. Rf1 {[%emt 0:00:19]} Qxh7 {[%emt 0:00:05]} 35. Rxh7 {[%emt 0:00:02]} Kg8 {[%emt 0:00:03]} 36. Rh4 {[%emt 0:00:02]} Nb8 {[%emt 0:00:11]} 37. Re4 {[%emt 0:00:12]} Nbc6 {[%emt 0:00:04]} 38. Nxc6 {[%emt 0:00:04]} Nxc6 {[%emt 0:00:04]} 39. Bxc4 {[%emt 0:00:02]} Rc7 {[%emt 0:00:08]} 40. Bxa6 {[%emt 0:00:02]} Rd2 {[%emt 0:00:08]} 41. Rc4 {[%emt 0:00:14]} Ra7 {[%emt 0:00:05]} 42. b5 {[%emt 0:00:25]} Ne5 {[%emt 0:00:03]} 43. Re4 {[%emt 0:00:03]} Rd5 {[%emt 0:00:05]} 44. a4 {[%emt 0:00:02]} Kg7 {[%emt 0:00:02]} 45. Rfe1 {[%emt 0:00:04]} f6 {[%emt 0:00:02]} 46. Rc1 {[%emt 0:00:03]} Rd2 {[%emt 0:00:03]} 47. Kf1 {[%emt 0:00:09]} Ra2 {[%emt 0:00:09]} 48. Rd1 {[%emt 0:00:08]} Ra3 {[%emt 0:00:12]} 49. Red4 {[%emt 0:00:16]} Re7 {[%emt 0:00:06]} 50. Re1 {[%emt 0:00:05]} Rc7 {[%emt 0:00:04]} 51. Rd2 {[%emt 0:00:08]} Rcc3 {[%emt 0:00:04]} 52. Rd6 {[%emt 0:00:14]} Nd3 {[%emt 0:00:06]} 53. Re7+ {[%emt 0:00:12]} Kh6 {[%emt 0:00:03]} 54. Kg1 {[%emt 0:00:38]} Rc2 {[%emt 0:00:07]} 55. Rxf6 {[%emt 0:00:07]} Raa2 {[%emt 0:00:04]} 56. Bb7 {[%emt 0:00:03]} Kg5 {[%emt 0:00:06]} 57. Rf1 {[%emt 0:00:03]} Nf4 {[%emt 0:00:04]} 58. h4+ {[%emt 0:00:12]} Kf6 {[%emt 0:00:06]} 59. Re8 {[%emt 0:00:10]} g5 {[%emt 0:00:06]} 60. hxg5+ {[%emt 0:00:03]} Kxg5 {[%emt 0:00:02]} 61. Rg8+ {[%emt 0:00:01]} Ng6 {[%emt 0:00:01]} 62. Be4 {[%emt 0:00:03]} Rd2 {[%emt 0:00:10]} 63. Rxg6+ {[%emt 0:00:03]} Kh5 {[%emt 0:00:01]} 64. Rg3 {[%emt 0:00:07]} Rxa4 {[%emt 0:00:05]} 65. Rf5+ {[%emt 0:00:04]} Kh4 {[%emt 0:00:03]} 66. Rh3+ {[%emt 0:00:03]} Kg4 {[%emt 0:00:02]} 67. Re5 {[%emt 0:00:21]} Kf4 {[%emt 0:00:12]} 68. Re8 {[%emt 0:00:01]} Re2 {[%emt 0:00:08]} 69. Rf3+ {[%emt 0:00:06]} Kg5 {[%emt 0:00:04]} 70. Rg8+ {[%emt 0:00:01]} 1-0